fUSD/lending_fUSD_20250505
["ID","MTS","AMOUNT","RATE_DAILY","PERIOD"]
[359968884,1746454250210,-450.0,0.00019864,2]
[359968886,1746454250222,-450.0,0.00019864,2]
[359968889,1746454250238,-2821.35,0.00019864,2]
[359968891,1746454250254,-450.0,0.00019864,2]
[359968894,1746454250268,-450.0,0.00019864,2]
[359968896,1746454250282,-589.22490729,0.00019864,2]
[359968899,1746454250296,-450.0,0.00019864,2]
[359968901,1746454250308,-434.68452417,0.00019864,2]
[359968904,1746454250324,-450.0,0.00019864,2]
[359968906,1746454250337,-450.0,0.00019864,2]
[359968909,1746454250352,-450.0,0.00019864,2]
[359968912,1746454250367,-450.0,0.00019864,2]
[359968914,1746454250382,-450.0,0.00019864,2]
[359968917,1746454250397,-450.0,0.00019864,2]
[359968919,1746454250411,-450.0,0.00019864,2]
[359968922,1746454250425,-450.0,0.00019864,2]
[359968924,1746454250438,-450.0,0.00019864,2]
[359968927,1746454250456,-513.72,0.00019864,2]
[359968929,1746454250471,-450.0,0.00019864,2]
[359968932,1746454250484,-450.0,0.00019864,2]
[359968934,1746454250497,-450.0,0.00019864,2]
[359968937,1746454250509,-450.0,0.00019864,2]
[359968939,1746454250521,-450.0,0.00019864,2]
[359968942,1746454250538,-450.0,0.00019864,2]
[359968944,1746454250549,-530.22,0.00019864,2]
[359968946,1746454250559,-450.0,0.00019864,2]
[359968949,1746454250573,-450.0,0.00019864,2]
[359968951,1746454250589,-450.0,0.00019864,2]
[359968953,1746454250602,-450.0,0.00019864,2]
[359968956,1746454250613,-450.0,0.00019864,2]
[359968958,1746454250629,-32770.63,0.00019864,2]
[359968961,1746454250641,-545.24,0.00019864,2]
[359968963,1746454250653,-450.0,0.00019864,2]
[359968965,1746454250665,-569.24456126,0.00019864,2]
[359968968,1746454250678,-450.0,0.00019864,2]
[359968970,1746454250690,-450.0,0.00019864,2]
[359968972,1746454250705,-450.0,0.00019864,2]
[359968975,1746454250716,-450.0,0.00019864,2]
[359968977,1746454250728,-450.0,0.00019864,2]
[359968978,1746454250740,-518.92159158,0.00019864,2]
[359968980,1746454250752,-450.0,0.00019864,2]
[359968981,1746454250764,-450.0,0.00019864,2]
[359968983,1746454250776,-450.0,0.00019864,2]
[359968985,1746454250788,-450.0,0.00019864,2]
[359968986,1746454250800,-450.0,0.00019864,2]
[359968988,1746454250813,-450.0,0.00019864,2]
[359968990,1746454250824,-450.0,0.00019864,2]
[359968991,1746454250837,-450.0,0.00019864,2]
[359968993,1746454250849,-450.0,0.00019864,2]
[359968995,1746454250862,-475.76929183,0.00019864,2]
[359968997,1746454250874,-450.0,0.00019864,2]
[359968998,1746454250886,-450.0,0.00019864,2]
[359969000,1746454250899,-450.0,0.00019864,2]
[359969001,1746454250911,-470.0,0.00019864,2]
[359969003,1746454250923,-450.0,0.00019864,2]
[359969005,1746454250936,-450.0,0.00019864,2]
[359969007,1746454250949,-500.0,0.00019864,2]
[359969008,1746454250961,-450.0,0.00019864,2]
[359969010,1746454250973,-450.0,0.00019864,2]
[359969012,1746454250986,-450.0,0.00019864,2]
[359969014,1746454250998,-450.0,0.00019864,2]
[359969016,1746454251010,-450.0,0.00019864,2]
[359969017,1746454251022,-500.0,0.00019864,2]
[359969019,1746454251034,-450.0,0.00019864,2]
[359969021,1746454251046,-450.0,0.00019864,2]
[359969023,1746454251058,-557.30350363,0.00019864,2]
[359969025,1746454251071,-450.0,0.00019864,2]
[359969027,1746454251084,-450.0,0.00019864,2]
[359969028,1746454251096,-450.0,0.00019864,2]
[359969030,1746454251108,-475.04609516,0.00019864,2]
[359969032,1746454251120,-450.0,0.00019864,2]
[359969034,1746454251134,-450.0,0.00019864,2]
[359969036,1746454251147,-450.0,0.00019864,2]
[359969038,1746454251159,-500.0,0.00019864,2]
[359969040,1746454251171,-450.0,0.00019864,2]
[359969042,1746454251184,-450.0,0.00019864,2]
[359969043,1746454251198,-450.0,0.00019864,2]
[359969045,1746454251211,-530.76493239,0.00019864,2]
[359969047,1746454251224,-450.0,0.00019864,2]
[359969049,1746454251237,-450.0,0.00019864,2]
[359969051,1746454251249,-450.0,0.00019864,2]
[359969053,1746454251262,-450.0,0.00019864,2]
[359969055,1746454251275,-450.0,0.00019864,2]
[359969056,1746454251288,-497.3834913,0.00019864,2]
[359969058,1746454251300,-677.45,0.00019864,2]
[359969060,1746454251310,-450.0,0.00019864,2]
[359969062,1746454251319,-450.0,0.00019864,2]
[359969063,1746454251330,-546.62565571,0.00019864,2]
[359969065,1746454251340,-559.00482396,0.00019864,2]
[359969067,1746454251350,-450.0,0.00019864,2]
[359969068,1746454251360,-450.0,0.00019864,2]
[359969070,1746454251371,-487.28284461,0.00019864,2]
[359969072,1746454251380,-450.0,0.00019864,2]
[359969073,1746454251390,-496.74402991,0.00019864,2]
[359969075,1746454251400,-450.0,0.00019864,2]
[359969077,1746454251409,-450.0,0.00019864,2]
[359969078,1746454251419,-450.0,0.00019864,2]
[359969080,1746454251428,-1282.8,0.00019864,2]
[359969095,1746454251646,-483.56461967,0.00019864,2]
[359969097,1746454251673,-450.0,0.00019864,2]
[359969098,1746454251686,-450.0,0.00019864,2]
[359969099,1746454251695,-450.0,0.00019864,2]
[359969100,1746454251705,-477.33159353,0.00019864,2]
[359969101,1746454251714,-450.0,0.00019864,2]
[359969102,1746454251723,-450.0,0.00019864,2]
[359969103,1746454251733,-450.0,0.00019864,2]
[359969104,1746454251742,-450.0,0.00019864,2]
[359969105,1746454251751,-653.2,0.00019864,2]
[359969106,1746454251761,-471.7155258,0.00019864,2]
[359969107,1746454251770,-542.28532297,0.00019864,2]
[359969108,1746454251780,-450.0,0.00019864,2]
[359969109,1746454251790,-477.69010555,0.00019864,2]
[359969110,1746454251800,-450.0,0.00019864,2]
[359969112,1746454251809,-450.0,0.00019864,2]
[359969113,1746454251819,-695.12015788,0.00019864,2]
[359969115,1746454251833,-391.05984212,0.00019864,2]
[359969117,1746454251842,-470.0,0.00019864,2]
[359969119,1746454251852,-1419.75099775,0.00019864,2]
[359969121,1746454251864,-11254.97900225,0.00019864,2]
[359969123,1746454251873,-450.0,0.00019864,2]
[359969125,1746454251882,-450.0,0.00019864,2]
[359969127,1746454251891,-464.12529235,0.00019864,2]
[359969129,1746454251901,-450.0,0.00019864,2]
[359969131,1746454251910,-506.01018536,0.00019864,2]
[359969133,1746454251920,-450.0,0.00019864,2]
[359969135,1746454251929,-450.0,0.00019864,2]
[359969137,1746454251939,-450.0,0.00019864,2]
[359969139,1746454251950,-168.82327602,0.00019864,2]
[359969141,1746454251959,-450.0,0.00019864,2]
[359969143,1746454251969,-516.32663185,0.00019864,2]
[359969145,1746454251978,-450.0,0.00019864,2]
[359969147,1746454251988,-483.96771364,0.00019864,2]
[359969149,1746454251998,-481.68611999,0.00019864,2]
[359969151,1746454252007,-450.0,0.00019864,2]
[359969153,1746454252017,-478.33957761,0.00019864,2]
[359969155,1746454252026,-141.99578813,0.00019864,2]
[359969157,1746454252038,-308.00421187,0.00019864,2]
[359969159,1746454252047,-450.0,0.00019864,2]
[359969161,1746454252056,-243.94359339,0.00019864,2]
[359969164,1746454252065,-359.05219474,0.00019864,2]
[359969166,1746454252082,-90.94780526,0.00019864,2]
[359969168,1746454252091,-497.99219474,0.00019864,2]
[359969171,1746454252102,-19.99780526,0.00019864,2]
[359969173,1746454252112,-450.0,0.00019864,2]
[359969175,1746454252121,-450.0,0.00019864,2]
[359969177,1746454252131,-450.0,0.00019864,2]
[359969179,1746454252140,-479.60042015,0.00019864,2]
[359969181,1746454252149,-393.50177459,0.00019864,2]
[359969183,1746454252166,-56.49822541,0.00019864,2]
[359969185,1746454252176,-472.61464909,0.00019864,2]
[359969187,1746454252186,-505.53,0.00019864,2]
[359969189,1746454252195,-450.0,0.00019864,2]
[359969191,1746454252207,-450.0,0.00019864,2]
[359969193,1746454252217,-478.30414347,0.00019864,2]
[359969195,1746454252227,-450.0,0.00019864,2]
[359969198,1746454252236,-450.0,0.00019864,2]
[359969200,1746454252246,-511.85972846,0.00019864,2]
[359969202,1746454252256,-450.0,0.00019864,2]
[359969204,1746454252266,-485.96,0.00019864,2]
[359969206,1746454252275,-500.0,0.00019864,2]
[359969208,1746454252285,-450.0,0.00019864,2]
[359969210,1746454252294,-480.0013835,0.00019864,2]
[359969211,1746454252303,-359.65602248,0.00019864,2]
[359969214,1746454252315,-90.34397752,0.00019864,2]
[359969216,1746454252325,-343.63164235,0.00019864,2]
[359969218,1746454252336,-106.36835765,0.00019864,2]
[359969220,1746454252345,-440.92675123,0.00019864,2]
[359969222,1746454252356,-9.07324877,0.00019864,2]
[359969224,1746454252365,-450.0,0.00019864,2]
[359969226,1746454252374,-450.0,0.00019864,2]
[359969228,1746454252383,-450.0,0.00019864,2]
[359969230,1746454252392,-450.0,0.00019864,2]
[359969232,1746454252402,-450.0,0.00019864,2]
[359969234,1746454252411,-450.0,0.00019864,2]
[359969236,1746454252420,-2656.77,0.00019864,2]
[359969238,1746454252430,-450.0,0.00019864,2]
[359969240,1746454252439,-450.0,0.00019864,2]
[359969242,1746454252450,-450.0,0.00019864,2]
[359969244,1746454252459,-450.0,0.00019864,2]
[359969246,1746454252469,-450.0,0.00019864,2]
[359969248,1746454252478,-362.33982077,0.00019864,2]
[359969250,1746454252487,-1513.01693046,0.00019865,2]
[359969252,1746454252499,-10986.98306954,0.00019865,2]
[359969254,1746454252508,-3155.5034109,0.00019865,2]
[359969256,1746454252517,-168.96811701,0.00019866,2]
[359969258,1746454252526,-1263.36301209,0.00019867,2]
[359969260,1746454252536,-299.82471199,0.00019867,2]
[359969262,1746454252545,-561.25208395,0.00019869,2]
[359969264,1746454252554,-276.04805832,0.00019872,2]
[359969266,1746454252563,-518.15,0.00019872,2]
[359969268,1746454252573,-450.0,0.00019872,2]
[359969270,1746454252582,-450.0,0.00019872,2]
[359969272,1746454252594,-450.0,0.00019872,2]
[359969274,1746454252604,-450.0,0.00019872,2]
[359969276,1746454252613,-450.0,0.00019872,2]
[359969278,1746454252622,-450.0,0.00019872,2]
[359969280,1746454252632,-450.0,0.00019872,2]
[359969282,1746454252641,-450.0,0.00019872,2]
[359969284,1746454252650,-450.0,0.00019872,2]
[359969286,1746454252660,-450.0,0.00019872,2]
[359969288,1746454252670,-450.0,0.00019872,2]
[359969290,1746454252680,-450.0,0.00019872,2]
[359969292,1746454252690,-532.67,0.00019872,2]
[359969294,1746454252699,-365.65,0.00019872,2]
[359969296,1746454252709,-839.28,0.00019872,2]
[359969298,1746454252718,-3166.23,0.00019872,2]
[359969300,1746454252728,-450.0,0.00019872,2]
[359969302,1746454252737,-450.0,0.00019872,2]
[359969304,1746454252746,-433.71,0.00019872,2]
[359969306,1746454252756,-240.90511748,0.00019873,2]
[359969308,1746454252765,-500.0,0.00019873,2]
[359969310,1746454252774,-170.07721603,0.00019873,2]
[359969312,1746454252784,-500.0,0.00019873,2]
[359969314,1746454252793,-500.0,0.00019873,2]
[359969316,1746454252802,-504.06511938,0.00019873,2]
[359969318,1746454252811,-500.0,0.00019873,2]
[359969320,1746454252821,-500.0,0.00019873,2]
[359969322,1746454252831,-500.0,0.00019873,2]
[359969324,1746454252840,-500.0,0.00019873,2]
[359969326,1746454252850,-500.0,0.00019873,2]
[359969328,1746454252859,-500.0,0.00019873,2]
[359969330,1746454252869,-546.78499546,0.00019873,2]
[359969332,1746454252878,-347.40802103,0.00019873,2]
[359969334,1746454252887,-505.26039964,0.00019873,2]
[359969336,1746454252897,-163.11684289,0.00019873,2]
[359969338,1746454252907,-500.0,0.00019873,2]
[359969340,1746454252916,-500.0,0.00019873,2]
[359969343,1746454252925,-500.0,0.00019873,2]
[359969344,1746454252935,-150.24055713,0.00019873,2]
[359969346,1746454252944,-500.0,0.00019873,2]
[359969349,1746454252956,-500.46165666,0.00019873,2]
[359969350,1746454252965,-500.0,0.00019873,2]
[359969352,1746454252975,-500.0,0.00019873,2]
[359969354,1746454252984,-500.0,0.00019873,2]
[359969357,1746454252994,-222.34650816,0.00019873,2]
[359969359,1746454253003,-160.27198598,0.00019873,2]
[359969361,1746454253012,-319.87215957,0.00019873,2]
[359969363,1746454253022,-528.24260022,0.00019873,2]
[359969365,1746454253031,-450.0,0.00019873,2]
[359969367,1746454253040,-2754.31,0.00019873,2]
[359969369,1746454253049,-2543.62,0.00019873,2]
[359969371,1746454253058,-3559.0182255,0.00019873,2]
[359969702,1746454355223,223.69,0.00018868,2]
[359969711,1746454558777,1000.0,0.00018822,2]
[359969712,1746454561029,463.24295261,0.00027945,30]
[359969713,1746454589640,2048.63,0.00018814,2]
[359969714,1746454602469,900.0,0.00027397,120]
[359969722,1746454748716,400.0,0.0003,30]
[359969724,1746454819536,500.0,0.000298,30]
[359969725,1746454987147,250.0,0.00018801,2]
[359969726,1746455008942,250.0,0.00017,2]
[359969727,1746455010030,300.0,0.00019,2]
[359969728,1746455070788,166.35,0.0001938,2]
[359969729,1746455118229,622.93,0.00018819,2]
[359969753,1746455307554,500.0,0.000298,30]
[359969781,1746455369759,3025.59,0.00018811,2]
[359969849,1746455376703,860.29,0.00016904,2]
[359969850,1746455376893,860.29,0.00019168,2]
[359969877,1746455432340,-410.5699995,0.000196,2]
[359969878,1746455432353,-589.4300005,0.000196,2]
[359969879,1746455432364,-200.0,0.000196,2]
[359969880,1746455432374,-177.3539161,0.000196,2]
[359969881,1746455432384,-200.0,0.00019643,2]
[359969882,1746455432394,-151.0,0.00019685,2]
[359969883,1746455432403,-668.65185757,0.00019685,2]
[359969884,1746455432414,-207.4,0.00019685,2]
[359969885,1746455432424,-151.0,0.00019693,2]
[359969886,1746455432433,-522.516,0.00019693,2]
[359969887,1746455432443,-200.0,0.00019693,2]
[359969888,1746455432453,-200.0,0.00019695,2]
[359969889,1746455432463,-1200.0,0.00019695,2]
[359969890,1746455432473,-300.0,0.00019696,2]
[359969891,1746455432482,-300.0,0.00019696,2]
[359969892,1746455432491,-1955.99602441,0.00019697,2]
[359969893,1746455432503,-611.58122946,0.00019697,2]
[359969934,1746455438247,-7709.93464613,0.00019697,2]
[359969935,1746455438258,-1527.0,0.000197,2]
[359969936,1746455438268,-9057.14693449,0.00019752,2]
[359969937,1746455438278,-426.1068,0.00019752,2]
[359969938,1746455438287,-2500.0,0.00019752,2]
[359969939,1746455438296,-188.16051126,0.00019761,2]
[359969940,1746455438306,-168.96811701,0.00019761,2]
[359969941,1746455438315,-561.25208395,0.00019762,2]
[359969943,1746455438324,-5028.5798,0.00019763,2]
[359969944,1746455438334,-874.5938,0.00019763,2]
[359969945,1746455438343,-9057.14693449,0.00019766,2]
[359969946,1746455438352,-1319.60103665,0.00019776,2]
[359969947,1746455438362,-160.60341166,0.00019777,2]
[359969948,1746455438371,-704.96726249,0.00019779,2]
[359969949,1746455438382,-576.23912566,0.00019779,2]
[359969950,1746455438395,-4474.8084569,0.00019779,2]
[359969951,1746455438425,-894.99999998,0.00019779,2]
[359969952,1746455438509,-1167.71626455,0.00019779,2]
[359970035,1746455440524,-273.22926897,0.00019779,2]
[359970036,1746455440623,-705.05576367,0.00019745,2]
[359970037,1746455440723,-4003.08297882,0.00019745,2]
[359970038,1746455440823,-1617.74045751,0.00019745,2]
[359970039,1746455440833,-965.18655594,0.00019779,2]
[359970040,1746455440842,-1319.60103665,0.00019788,2]
[359970041,1746455440852,-316.54029767,0.00019788,2]
[359970042,1746455440861,-2000.0,0.00019789,2]
[359970043,1746455440871,-162.46151104,0.00019796,2]
[359970044,1746455440880,-424.2036009,0.00019798,2]
[359970045,1746455440890,-3193.38761873,0.000198,5]
[359970046,1746455440899,-1319.60103665,0.00019801,2]
[359970047,1746455441070,-1319.60103665,0.00019813,2]
[359970048,1746455441081,-162.46151099,0.00019813,2]
[359970049,1746455441091,-1319.60103665,0.00019826,2]
[359970050,1746455441101,-162.46151099,0.00019831,2]
[359970051,1746455441110,-1319.60103665,0.00019838,2]
[359970052,1746455441120,-160.60341165,0.00019839,2]
[359970053,1746455441129,-366.10670828,0.00019843,2]
[359970054,1746455441138,-500.0,0.00019843,2]
[359970055,1746455441147,-500.0,0.00019843,2]
[359970056,1746455441157,-500.0,0.00019843,2]
[359970057,1746455441167,-500.0,0.00019843,2]
[359970058,1746455441178,-500.0,0.00019843,2]
[359970059,1746455441187,-500.0,0.00019843,2]
[359970060,1746455441197,-500.0,0.00019843,2]
[359970061,1746455441206,-500.0,0.00019843,2]
[359970062,1746455441215,-500.0,0.00019843,2]
[359970063,1746455441225,-500.0,0.00019843,2]
[359970064,1746455441234,-155.17797136,0.00019843,2]
[359970065,1746455441244,-500.0,0.00019843,2]
[359970066,1746455441253,-500.0,0.00019843,2]
[359970067,1746455441263,-500.0,0.00019843,2]
[359970068,1746455441272,-500.0,0.00019843,2]
[359970069,1746455441281,-500.0,0.00019843,2]
[359970070,1746455441290,-300.0,0.00019843,2]
[359970071,1746455441299,-195.52133714,0.00019843,2]
[359970072,1746455441309,-180.12891608,0.00019844,3]
[359970073,1746455441318,-250.0,0.00019845,2]
[359970074,1746455441327,-450.0,0.00019845,2]
[359970075,1746455441336,-450.0,0.00019845,2]
[359970076,1746455441346,-450.0,0.00019845,2]
[359970077,1746455441355,-450.0,0.00019845,2]
[359970078,1746455441365,-450.0,0.00019845,2]
[359970079,1746455441374,-450.0,0.00019845,2]
[359970080,1746455441384,-450.0,0.00019845,2]
[359970081,1746455441393,-450.0,0.00019845,2]
[359970082,1746455441402,-450.0,0.00019845,2]
[359970083,1746455441412,-450.0,0.00019845,2]
[359970084,1746455441422,-450.0,0.00019845,2]
[359970085,1746455441431,-392.80773028,0.00019845,2]
[359970086,1746455441441,-450.0,0.00019845,2]
[359970087,1746455441451,-450.0,0.00019845,2]
[359970088,1746455441460,-450.0,0.00019845,2]
[359970089,1746455441470,-450.0,0.00019845,2]
[359970090,1746455441479,-450.0,0.00019845,2]
[359970091,1746455441489,-450.0,0.00019845,2]
[359970092,1746455441498,-450.0,0.00019845,2]
[359970093,1746455441508,-450.0,0.00019845,2]
[359970094,1746455441517,-450.0,0.00019845,2]
[359970095,1746455441526,-450.0,0.00019845,2]
[359970096,1746455441536,-450.0,0.00019845,2]
[359970097,1746455441545,-450.0,0.00019845,2]
[359970098,1746455441554,-450.0,0.00019845,2]
[359970099,1746455441563,-450.0,0.00019845,2]
[359970100,1746455441573,-450.0,0.00019845,2]
[359970101,1746455441582,-450.0,0.00019845,2]
[359970102,1746455441591,-450.0,0.00019845,2]
[359970103,1746455441601,-450.0,0.00019845,2]
[359970104,1746455441611,-450.0,0.00019845,2]
[359970105,1746455441620,-450.0,0.00019845,2]
[359970106,1746455441629,-450.0,0.00019845,2]
[359970107,1746455441638,-450.0,0.00019845,2]
[359970108,1746455441648,-450.0,0.00019845,2]
[359970109,1746455441657,-450.0,0.00019845,2]
[359970110,1746455441666,-418.78130122,0.00019845,2]
[359970111,1746455441677,-450.0,0.00019845,2]
[359970112,1746455441686,-450.0,0.00019845,2]
[359970113,1746455441695,-450.0,0.00019845,2]
[359970115,1746455441704,-450.0,0.00019845,2]
[359970117,1746455441714,-450.0,0.00019845,2]
[359970118,1746455441723,-450.0,0.00019845,2]
[359970120,1746455441733,-457.37785718,0.00019845,2]
[359970122,1746455441742,-450.0,0.00019845,2]
[359970123,1746455441751,-450.0,0.00019845,2]
[359970125,1746455441760,-450.0,0.00019845,2]
[359970127,1746455441770,-450.0,0.00019845,2]
[359970128,1746455441779,-687.73,0.00019845,2]
[359970130,1746455441788,-450.0,0.00019845,2]
[359970132,1746455441797,-450.0,0.00019845,2]
[359970133,1746455441806,-450.0,0.00019845,2]
[359970135,1746455441815,-450.0,0.00019845,2]
[359970137,1746455441824,-450.0,0.00019845,2]
[359970139,1746455441833,-450.0,0.00019845,2]
[359970140,1746455441842,-450.0,0.00019845,2]
[359970142,1746455441852,-450.0,0.00019845,2]
[359970144,1746455441861,-521.14833361,0.00019845,2]
[359970145,1746455441870,-450.0,0.00019845,2]
[359970147,1746455441879,-450.0,0.00019845,2]
[359970149,1746455441888,-450.0,0.00019845,2]
[359970151,1746455441897,-450.0,0.00019845,2]
[359970152,1746455441906,-450.0,0.00019845,2]
[359970154,1746455441916,-450.0,0.00019845,2]
[359970156,1746455441925,-450.0,0.00019845,2]
[359970157,1746455441934,-450.0,0.00019845,2]
[359970159,1746455441943,-450.0,0.00019845,2]
[359970161,1746455441952,-450.0,0.00019845,2]
[359970163,1746455441961,-476.68,0.00019845,2]
[359970164,1746455441970,-450.0,0.00019845,2]
[359970166,1746455441979,-450.0,0.00019845,2]
[359970168,1746455441989,-450.00486552,0.00019845,2]
[359970169,1746455441999,-450.0,0.00019845,2]
[359970171,1746455442010,-450.0,0.00019845,2]
[359970173,1746455442019,-450.0,0.00019845,2]
[359970175,1746455442029,-450.0,0.00019845,2]
[359970176,1746455442038,-450.0,0.00019845,2]
[359970178,1746455442048,-450.0,0.00019845,2]
[359970180,1746455442058,-450.0,0.00019845,2]
[359970182,1746455442067,-450.0,0.00019845,2]
[359970183,1746455442078,-450.0,0.00019845,2]
[359970185,1746455442088,-450.0,0.00019845,2]
[359970187,1746455442097,-450.0,0.00019845,2]
[359970189,1746455442106,-450.0,0.00019845,2]
[359970190,1746455442115,-500.0,0.00019845,2]
[359970192,1746455442124,-976.29,0.00019845,2]
[359970194,1746455442133,-452.93,0.00019845,2]
[359970195,1746455442143,-843.44,0.00019845,2]
[359970197,1746455442152,-162.46151099,0.00019848,2]
[359970199,1746455442162,-1319.60103665,0.00019851,2]
[359970201,1746455442172,-278.76,0.00019851,2]
[359970202,1746455442181,-450.0,0.00019852,2]
[359970204,1746455442190,-450.0,0.00019852,2]
[359970206,1746455442200,-450.0,0.00019852,2]
[359970208,1746455442209,-450.0,0.00019852,2]
[359970210,1746455442219,-450.0,0.00019852,2]
[359970212,1746455442228,-450.0,0.00019852,2]
[359970214,1746455442238,-450.0,0.00019852,2]
[359970216,1746455442248,-450.0,0.00019852,2]
[359970218,1746455442257,-450.0,0.00019852,2]
[359970220,1746455442266,-450.0,0.00019852,2]
[359970222,1746455442275,-450.0,0.00019852,2]
[359970224,1746455442284,-450.0,0.00019852,2]
[359970225,1746455442293,-450.0,0.00019852,2]
[359970226,1746455442302,-450.0,0.00019852,2]
[359970227,1746455442311,-450.0,0.00019852,2]
[359970228,1746455442321,-450.0,0.00019852,2]
[359970229,1746455442330,-450.0,0.00019852,2]
[359970230,1746455442339,-450.0,0.00019852,2]
[359970231,1746455442348,-450.0,0.00019852,2]
[359970232,1746455442357,-450.0,0.00019852,2]
[359970233,1746455442366,-450.0,0.00019852,2]
[359970234,1746455442375,-506.05877206,0.00019852,2]
[359970235,1746455442383,-450.0,0.00019852,2]
[359970236,1746455442392,-450.0,0.00019852,2]
[359970237,1746455442401,-450.0,0.00019852,2]
[359970238,1746455442410,-450.0,0.00019852,2]
[359970239,1746455442420,-450.0,0.00019852,2]
[359970240,1746455442429,-450.0,0.00019852,2]
[359970241,1746455442438,-450.0,0.00019852,2]
[359970242,1746455442447,-450.0,0.00019852,2]
[359970243,1746455442456,-450.0,0.00019852,2]
[359970244,1746455442465,-481.624246,0.00019852,2]
[359970246,1746455442474,-450.0,0.00019852,2]
[359970247,1746455442483,-450.0,0.00019852,2]
[359970248,1746455442492,-450.0,0.00019852,2]
[359970250,1746455442501,-522.49919622,0.00019852,2]
[359970251,1746455442510,-450.0,0.00019852,2]
[359970253,1746455442519,-450.0,0.00019852,2]
[359970255,1746455442528,-450.0,0.00019852,2]
[359970257,1746455442537,-450.0,0.00019852,2]
[359970259,1746455442546,-450.0,0.00019852,2]
[359970261,1746455442555,-450.0,0.00019852,2]
[359970263,1746455442564,-450.0,0.00019852,2]
[359970265,1746455442573,-2703.8,0.00019852,2]
[359970267,1746455442582,-450.0,0.00019852,2]
[359970269,1746455442591,-450.0,0.00019852,2]
[359970271,1746455442600,-450.0,0.00019852,2]
[359970273,1746455442609,-450.0,0.00019852,2]
[359970275,1746455442619,-450.0,0.00019852,2]
[359970277,1746455442628,-450.0,0.00019852,2]
[359970279,1746455442637,-762.01,0.00019852,2]
[359970281,1746455442646,-450.0,0.00019852,2]
[359970283,1746455442655,-450.0,0.00019852,2]
[359970285,1746455442664,-450.0,0.00019852,2]
[359970286,1746455442674,-45656.04,0.00019852,2]
[359970289,1746455442683,-450.0,0.00019852,2]
[359970290,1746455442692,-450.0,0.00019852,2]
[359970293,1746455442702,-450.0,0.00019852,2]
[359970295,1746455442711,-455.1,0.00019852,2]
[359970297,1746455442720,-450.0,0.00019852,2]
[359970298,1746455442729,-450.0,0.00019852,2]
[359970301,1746455442739,-450.0,0.00019852,2]
[359970302,1746455442748,-450.0,0.00019852,2]
[359970304,1746455442757,-667.97,0.00019852,2]
[359970307,1746455442767,-450.0,0.00019852,2]
[359970309,1746455442777,-450.0,0.00019852,2]
[359970311,1746455442787,-450.0,0.00019852,2]
[359970313,1746455442797,-450.0,0.00019852,2]
[359970315,1746455442807,-644.73,0.00019852,2]
[359970317,1746455442817,-12146.62,0.00019852,2]
[359970319,1746455442826,-450.0,0.00019852,2]
[359970321,1746455442835,-450.0,0.00019852,2]
[359970323,1746455442844,-450.0,0.00019852,2]
[359970325,1746455442854,-450.0,0.00019852,2]
[359970327,1746455442864,-450.0,0.00019852,2]
[359970329,1746455442873,-450.0,0.00019852,2]
[359970331,1746455442883,-1118.1,0.00019852,2]